Cogmind - Beta 14 @@@ ROGUE MODE // 2024.11.21 @ 17:09:19 Player: skye Result: Destroyed by S-10 Pest with Light Assault Rifle Performance ------------- Evolutions (0) 0 Regions Visited (2) 400 Robots Destroyed (19) 95 Value Destroyed (335) 335 Prototype IDs (0) 0 Alien Tech Used (0) 0 Bonus (0) 0 TOTAL SCORE: 830 Bonus ------- None Cogmind --------- Core Integrity 0/250 Matter 300/300 Energy 123/125 System Corruption 8% Temperature Cool (0) Movement Rolling (80) Location -10/Mines Parts ------- > --- POWER (1) -------- Light Ion Engine > --- PROPULSION (2) --- Wheel Wheel > --- UTILITY (2) ------ Small Storage Unit Terrain Scan Processor > --- WEAPON (2) ------- Beam Cannon Assault Rifle > --- INVENTORY (8) ---- Light Ion Engine Wheel Heat Sink Structural Scanner Improved Terrain Scanner Targeting Computer Assault Rifle Mining Laser Peak State ------------ > --- POWER ------------ Light Ion Engine > --- PROPULSION ------- Wheel Wheel > --- UTILITY ---------- Small Storage Unit Terrain Scan Processor > --- WEAPON ----------- Beam Cannon Assault Rifle > --- INVENTORY -------- Light Ion Engine Wheel Heat Sink Structural Scanner Improved Terrain Scanner Targeting Computer Assault Rifle Mining Laser [Rating: 9] Favorites ----------- Power Light Ion Engine Engine Light Ion Engine Propulsion Aluminum Leg Leg Aluminum Leg Wheel Wheel Utility Small Storage Unit Storage Small Storage Unit Processor Terrain Scan Processor Protection Light Armor Plating Weapon Assault Rifle Energy Cannon Beam Cannon Ballistic Gun Assault Rifle Launcher Grenade Launcher Build | -11 -10 -10 ------- Run | Yrd Mat Min Slots Evolved . | . . . Power . | . . . Propulsion . | . . . Utility . | . . . Weapon . | . . . Parts Attached 20 | 3 11 6 Power 3 | . 2 1 Engine 3 | . 2 1 Core . | . . . Reactor . | . . . Propulsion 8 | 3 3 2 Treads . | . . . Leg 4 | 1 3 . Wheel 4 | 2 . 2 Hover . | . . . Flight . | . . . Utility 2 | . 1 1 Device . | . . . Storage . | . . . Processor 1 | . . 1 Hackware . | . . . Protection 1 | . 1 . Artifact . | . . . Weapon 7 | . 5 2 Energy Gun . | . . . Energy Cannon 1 | . . 1 Ballistic Gun 2 | . 2 . Ballistic Cannon . | . . . Launcher 4 | . 3 1 Special Weapon . | . . . Impact Weapon . | . . . Slashing Weapon . | . . . Piercing Weapon . | . . . Special Melee Weapon . | . . . Unidentified Prototypes . | . . . Parts Lost 6 | . 1 5 Power 2 | . 1 1 Propulsion 2 | . . 2 Utility 1 | . . 1 Weapon 1 | . . 1 Highest Loss Streak 3 | . 1 3 To Critical Strikes . | . . . Average Slot Usage (%) 91 | . 93 83 Engine 13 | . 13 11 Leg 26 | . 27 18 Storage 14 | . 14 14 Protection 8 | . 8 6 Ballistic Gun 16 | . 17 14 Launcher 10 | . 10 6 Peak Build Rating 9 | 6 7 9 Average Rating 6 | 6 6 6 On Entrance 6 | 6 6 7 Naked Turns . | . . . Heaviest Build 17 | 12 16 17 Greatest Support 20 | 20 20 20 Greatest Overweight (x) 4 | . . 4 Average Overweight (x) . | . . . Largest Inventory Capacity 8 | 8 8 8 Average Capacity 8 | 8 8 8 Most Carried 8 | 6 8 8 Average Carried 7 | 6 7 7 Final Capacity 8 | 8 8 8 Final Carried 8 | 6 8 8 Class Distribution -------------------- 100% | Mutant Dominant Class ---------------- Mutant | -10/Materials Mutant | -10/Mines Resources | -11 -10 -10 ----------- Run | Yrd Mat Min Matter Collected 736 | 230 363 143 Remotely . | . . . Salvage Created 516 | . 380 136 Parts 36 | . 34 2 Haulers Intercepted . | . . . Recyclers Shooed 2 | . 2 . Parts Field Recycled . | . . . Retrieved Matter . | . . . Parts Self-Destructed . | . . . Prevented . | . . . Kills | -11 -10 -10 ------- Run | Yrd Mat Min Combat Hostiles Destroyed 24 | . 15 9 Guns 11 | . 7 4 Cannons 2 | . . 2 AOE 11 | . 8 3 Classes Destroyed 7 | . 5 2 Worker 1 | . . 1 Builder 1 | . 1 . Recycler 1 | . 1 . Operator 1 | . 1 . Swarmer 9 | . 9 . Grunt 6 | . 6 . Assembled 9 | . . 9 Best Kill Streak 5 | . 4 5 Combat Bots Only 4 | . 3 4 Max Kills in Single Turn 3 | . 3 2 Gunslinging . | . . . Exploded 3 | . 3 2 Melee . | . . . Uniques/NPCs Destroyed . | . . . Combat | -11 -10 -10 -------- Run | Yrd Mat Min Hostile Shots Fired 123 | . 55 68 Missed 37 | . 14 23 Damage Taken 1205 | . 509 696 Core 254 | . 59 195 Absorbed by Shields . | . . . Regen/Repaired (Parts) 33 | . 33 . Core Remaining (%) 100 | 100 . . Volleys Fired 75 | . 48 27 Largest 2 | . 2 2 Hottest 80 | . 40 80 Shots Fired 107 | . 66 41 Gun 83 | . 57 26 Cannon 13 | . . 13 Launcher 11 | . 9 2 Special . | . . . Kinetic 83 | . 57 26 Thermal 13 | . . 13 Explosive 11 | . 9 2 Electromagnetic . | . . . Robot Hit Streak 7 | . 7 7 Robot Miss Streak 4 | . 4 4 Penetration Max . | . . . Secondary Targets 1 | . 1 . Max Gunslinging Chain 1 | . 1 . Shots Hit Robots 56 | . 36 20 Core Hits 46 | . 28 18 Critical Kills . | . . . Critical Parts Destroyed . | . . . Critical Strikes . | . . . Melee Attacks . | . . . Impact . | . . . Slashing . | . . . Piercing . | . . . Sneak Attacks . | . . . Combat Hostiles . | . . . Follow-up Attacks . | . . . Damage Inflicted 1574 | . 1108 466 Guns 626 | . 436 190 Cannons 87 | . . 87 Explosions 861 | . 672 189 Melee . | . . . Ramming . | . . . Kinetic 626 | . 436 190 Thermal 87 | . . 87 Explosive 861 | . 672 189 Electromagnetic . | . . . Impact . | . . . Slashing . | . . . Piercing . | . . . Highest Corruption 8 | . . 8 Average Corruption 8 | . . 8 Corruption Purged . | . . . Corruption Blocked . | . . . Effects 4 | . . 4 Matter Fused 1 | . . 1 Heat Flow Errors 1 | . . 1 Data Loss (minor) 1 | . . 1 Weapon Failures 1 | . . 1 Overload Shots . | . . . Overflow Damage 3 | . 3 . Projectiles . | . . . Explosions 3 | . 3 . Melee . | . . . Knockbacks . | . . . Impact . | . . . Kinetic . | . . . Secondary . | . . . Self-Inflicted Damage 142 | . 102 40 Shots 6 | . 5 1 Rammed . | . . . Targets Rammed . | . . . Kicked . | . . . Crushed . | . . . Highest Temperature 174 | . 14 174 Average Temperature 73 | . 6 84 Received Heat Transfer 249 | . 129 120 Siege Activations . | . . . Robots Corrupted . | . . . Combat Hostiles . | . . . Parts Fried . | . . . Impact Corruptions . | . . . Robots Melted . | . . . Combat Hostiles . | . . . Parts Melted . | . . . Heat Transferred 185 | . . 185 Parts Sabotaged . | . . . Parts Stolen . | . . . Parts Stripped . | . . . Power Chain Reactions . | . . . Alert | -11 -10 -10 ------- Run | Yrd Mat Min Peak Influence 256 | . 256 57 Initial 40 | . . 40 Average 98 | . 113 31 Maximum Alert Level 1 | . 1 . Low Security (%) 85 | 100 82 100 Level 1 14 | . 17 . Level 2 . | . . . Level 3 . | . . . Level 4 . | . . . Level 5 . | . . . High Security . | . . . Max Security . | . . . Squads Dispatched 1 | . 1 . Investigation 1 | . 1 . Extermination . | . . . Reinforcement . | . . . Assault . | . . . Garrison . | . . . Intercept . | . . . Searches Triggered . | . . . Construction Impeded . | . . . Haulers Reinforced . | . . . Active Scanning Responses . | . . . Cargo Convoy Interrupts . | . . . Stealth | -11 -10 -10 --------- Run | Yrd Mat Min Distress Signals 1 | . 1 . Communications Jammed . | . . . Distress Signals . | . . . Times Spotted 36 | . 23 13 Peak Tracking Total 14 | . 3 14 Tactical Retreats 3 | . . 3 Traps | -11 -10 -10 ------- Run | Yrd Mat Min Traps Triggered 2 | . 2 . Indirectly . | . . . Trap Hack Attempts . | . . . Triggered . | . . . Disarmed . | . . . Reprogrammed . | . . . Reused . | . . . Traps Extracted . | . . . Installed . | . . . Triggered . | . . . Machines | -11 -10 -10 ---------- Run | Yrd Mat Min Machines Disabled . | . . . Max in Single Turn . | . . . Machines Repaired . | . . . Machines Dismantled . | . . . Machines Sabotaged . | . . . Overloaded Fab Kills . | . . . Hacking | -11 -10 -10 --------- Run | Yrd Mat Min Machines Accessed 9 | . 9 . Terminals 7 | . 7 . Fabricators . | . . . Repair Stations 1 | . 1 . Recycling Units 1 | . 1 . Scanalyzers . | . . . Garrison Access . | . . . Total Hacks 19 | . 19 . Successful 10 | . 10 . Failed 9 | . 9 . Catastrophic . | . . . Database Lockouts . | . . . Manual 15 | . 15 . Terminals 15 | . 15 . Fabricators . | . . . Repair Stations 2 | . 2 . Recycling Units 2 | . 2 . Scanalyzers . | . . . Garrison Access . | . . . Terminal Hacks 1 | . 1 . Hauler Manifests 1 | . 1 . Fabricator Hacks . | . . . Repair Station Hacks 2 | . 2 . Scan Component 1 | . 1 . Repair 1 | . 1 . Recycling Unit Hacks 2 | . 2 . Report Inventory 1 | . 1 . Retrieve Components 1 | . 1 . Scanalyzer . | . . . Garrison Access Hacks . | . . . Unauthorized Hacks 5 | . 5 . Terminals 5 | . 5 . Botnet 5 | . 5 . Fabricators . | . . . Repair Stations . | . . . Recycling Units . | . . . Scanalyzers . | . . . Garrison Access . | . . . Data Cores Recovered 1 | . 1 . Used . | . . . Hacking Detections 8 | . 8 . Full Trace Events 1 | . 1 . Feedback Events . | . . . Feedback Blocked . | . . . Robot Schematics Acquired . | . . . Robots Built . | . . . Authchips . | . . . Time . | . . . Total Robot Build Rating . | . . . Part Schematics Acquired . | . . . Parts Built . | . . . Authchips . | . . . Time . | . . . Total Part Build Rating . | . . . Parts Repaired 1 | . 1 . Time 26 | . 26 . Parts Recycled . | . . . Recycled Matter . | . . . Retrieved Matter . | . . . Retrieved Components 5 | . 5 . Parts Scanalyzed . | . . . Part Schematics Acquired . | . . . Parts Damaged . | . . . Bothacking | -11 -10 -10 ------------ Run | Yrd Mat Min Used RIF Installer . | . . . Robots Hacked . | . . . Non-combat . | . . . Combat . | . . . Robot Hacks Applied . | . . . Relay Couplers Released . | . . . Fabnet Peak Effective % . | . . . Robots Rewired . | . . . Allies Hacked . | . . . Hacks Repelled . | . . . Allies | -11 -10 -10 -------- Run | Yrd Mat Min Total Allies . | . . . Largest Group . | . . . Highest-Rated Group . | . . . Highest-Rated Ally . | . . . Total Orders . | . . . Ally Attacks . | . . . Total Damage . | . . . Kills . | . . . Allies Corrupted . | . . . Allies Melted . | . . . Intel | -11 -10 -10 ------- Run | Yrd Mat Min Robot Analysis Total . | . . . Derelict Logs Recovered 2 | . . 2 Drone Launches . | . . . Drone Recoveries . | . . . Exploration | -11 -10 -10 ------------- Run | Yrd Mat Min Turns Passed 1146 | 10 934 202 Spaces Moved 735 | 5 621 109 Core 2 | . . 2 Treads . | . . . Legs 706 | 5 621 80 Wheels 27 | . . 27 Hover . | . . . Flight . | . . . Fastest Speed 80 | 120 120 80 Average Speed 118 | 120 120 112 Slowest Speed 250 | 120 120 250 Overloaded Moves . | . . . Propulsion Burnouts . | . . . Robots Hopped . | . . . Cave-ins Triggered . | . . . Exploration Rate (%) 36 | 2 79 28 Regions Visited 2 Branch Regions 1 Pre-discovered Areas 1 | . . 1 Known Exits Taken . | . . . Unknown Exits Taken 2 | 1 1 . Scrap Searched 1 | . . 1 Spaces Dug . | . . . Terrain Destroyed 66 | . 49 17 Melee . | . . . Projectile . | . . . AOE 66 | . 49 17 Terrain Rammed . | . . . Walls Destroyed . | . . . Machines Disabled . | . . . Actions | -11 -10 -10 --------- Run | Yrd Mat Min Total 895 | 7 743 145 Wait 49 | . 48 1 Move 733 | 4 620 109 Hop . | . . . Pick Up 10 | . 9 1 Fast Attach 7 | . 3 4 Attach 2 | . 1 1 Detach . | . . . Swap 11 | 3 7 1 Drop 8 | . 7 1 Fire 75 | . 48 27 Melee . | . . . Ram . | . . . Kick . | . . . Crush . | . . . Escape Stasis . | . . . Rewire . | . . . Trap . | . . . Miscellaneous . | . . . Route ------- -11/Scrapyard -10/Materials (discovered 4 exits: [*Mat x2] / [*Min x2]) -10/Mines History --------- Turn | Location | Event 6 | -11/Scrapyard | Discovered new exit (range 3) 11 | -11/Scrapyard | Entered Materials 193 | -10/Materials | Discovered new exit (range 14) 283 | -10/Materials | Repaired Aluminum Leg 304 | -10/Materials | Build established: Mutant 496 | -10/Materials | Discovered new exit (range 12) 749 | -10/Materials | Discovered new exit (range 9) 879 | -10/Materials | Discovered new exit (range 15) 945 | -10/Materials | Entered Mines 962 | -10/Mines | Learned location of 1 exit from Materials 1000 | -10/Mines | Assembled infested the area 1001 | -10/Mines | Learned location of Zion (-6) 1023 | -10/Mines | Received a Rocket Launcher from a helpful Derelict 1057 | -10/Mines | Core integrity fell below 50% 1101 | -10/Mines | Core integrity fell below 20% 1127 | -10/Mines | Lost 3 parts (1p2n) 1147 | -10/Mines | Destroyed by S-10 Pest with Light Assault Rifle Last Messages --------------- as-62919 destroyed. Acquired 18 matter. K-01 Serf collects debris. K-01 Serf destroyed. Lgt. Ion Engine destroyed. Acquired Wheel. Destroyed Asb. Hover Unit. System corrupted: Beam Cannon failed to cycle. as-78507 destroyed. Acquired 30 matter. Acquired 21 matter. Acquired Terrain Scan Processor. Acquired 10 matter. Acquired Lgt. Ion Engine. as-42988 destroyed. Acquired 19 matter. System corrupted: Component data lost. Acquired Wheel. Acquired 10 matter. Acquired Imp. Terrain Scanner. Map ----- +----------------------------------------------------+ | ?????????????????????????????????????????### ???? | | ????????????????????????????????????????? #??? | | ?????????????????????????????????????????? ##? | | ?????????????????????????????????????????? #? | | ?????????????????????????????????##??????? % #? | | ????????????????????????????????? ???????? #? | | ?????????????????????????????????" ??? ?#?? #? | | ????????????????????????????????"" """ ???# ? | | ????????????????????????????????"" """=????? ## | | ?????????????????????????????????" """%????? # | | ?????????????????????????????????? ??????# # | | ??????????????????????????????????# #??????# #? | | ??????????????????????????????????# #??????# ##? | | ??????????????????????????????????# ##?????# #?? | | ???????????????????????????????#### ##????# #?? | | ???????????????????????????????# #????# #?? | | ??????????????????????????????## % ###### #?? | | ????????????????????????########% % %* #?? | | ????????????????????????# % !% * % % ##### ##?? | | ????????????????????????#! |!! %!% ##???# #??? | | ????????????????????????#% #####! ##????# #??? | | ????????????????????????# #???## #?????# #??? | | ????????????????????????# #???### ###?????# #??? | | ????????????????????????# #?????# #???????# #??? | | ???????????????????????## ##????####???????# #??? | | ???????????????????????# @ #???????????????# #??? | | ???????????????????? #??????????????# #??? | | ?????????????????#$ #?????????###### #??? | | ?????????????? #?????????# #??? | | ??????????? ss ##???####### ######??? | | ????????????##### #????# #???????? | | ????????????????# #????# ## ####???????? | | ????????????????# #???## ## ############ | | ????????????????## ## ???# # | | ?????????????????###?## ???# """ """ """ # | | ??????????????????????# ???# """ """ """ # | | ??????????????????????# ##??# """ """ """ # | | ??????????????????????# #???# # | | ??????????????????????## ##???# """ """ # | | ????????????????????????# ?????# """ """ # | | ????????????????????????? ?????# """ """ # | | ????????????????????????????????# # | | ????????????????????????????????# # | | ????????????????????????????????# ############### | | ????????????????????????????????# #?????????????? | | ????????????????????????????????# ##?????????????? | | ????????????????????????????????##???????????????? | | ?????????????????????????????????????????????????? | | ?????????????????????????????????????????????????? | | ?????????????????????????????????????????????????? | +----------------------------------------------------+ Best States ------------- Heat Dissipation 25 Energy Generation 10 Energy Capacity 125 Matter Stores 300 Matter Capacity 300 Sight Range 16 Terrain Scan Density 85 Armor Coverage 150 Evasion (%) 55 Item Schematics ----------------- None Robot Schematics ------------------ None Fabricated ------------ Nothing Alien Tech Used ----------------- None Achievements -------------- None Challenges ------------ None Game ------ Seed SmartbombProjectionDrive Manual? 0 Play Time 00:12:27 Cumulative 52.8 hours Start 2024.11.21 @ 16:57:40 End 2024.11.21 @ 17:09:19 Sessions 1 Manual Loads 0 Difficulty Rogue Special Mode None Game No. 70 Rogue 26 Adventurer 44 Explorer 0 Win Type - Total 0 Types 0/0/0/0/0/0/0/0/0 Lore% 18 Gallery% 43 Achievement% 30 Wizard Run 0 Options --------- Layout 1 ASCII 0 Keyboard 1 Movement Vi Keybinds 0 Fullscreen 1 Font 24/Terminus Map View 50x40 Zoom Use 0% Tactical HUD 0 Map Filters NONE Filters NONE Steam 1 RUN: 1f81b696-d85e-4189-8831-417b3f49e53f